bitfinex/quotes_SOLUSD_20240906
["timestamp","ask_amount","ask_price","bid_price","bid_amount"]
[1725631493925,19.1298,130.69,130.6,20.67263367]
[1725631494211,7.654,130.66,130.61,7.6563]
[1725631494412,7.654,130.66,130.55,15.8002]
[1725631494413,10.19983813,130.65,130.54,38.3019]
[1725631494715,7.6556,130.63,130.58,7.6581]
[1725631495098,7.6541,130.65,130.61,7.6562]
[1725631495297,60.5987,130.7,130.6,19.1419]
[1725631495298,7.6531,130.67,130.6,19.1419]
[1725631495502,22.341,130.7,130.62,7.6553]
[1725631495712,7.6541,130.65,130.59,1.53068243]
[1725631495999,22.97946939,130.7,130.59,1.53068243]
[1725631496000,7.6529,130.67,130.62,26.7938]
[1725631496820,19.1298,130.69,130.59,19.143]
[1725631497004,9.56154805,130.68,130.59,19.143]
[1725631497183,9.56154805,130.68,130.59,20.67388531]
[1725631497387,7.6539,130.66,130.6,7.6565]
[1725631497588,9.56154805,130.68,130.54,38.3019]
[1725631497589,0.63846939,130.68,130.54,38.3019]
[1725631497896,29.33457039,130.67,130.56,19.1478]
[1725631498096,7.6562,130.62,130.57,7.6585]
[1725631498318,7.6562,130.62,130.56,19.1478]
[1725631498319,7.6565,130.61,130.56,26.8069]
[1725631498694,19.77396939,130.65,130.53,19.1518]
[1725631499013,38.2668,130.67,130.53,19.1518]
[1725631499014,15.2152,130.62,130.53,19.1518]
[1725631499196,9.56062084,130.61,130.5,26.8186]
[1725631499399,10.19909023,130.6,130.5,26.8188]
[1725631499591,9.56062084,130.59,130.47,34.8319]
[1725631499801,55.19465964,130.58,130.47,19.1607]
[1725631499991,7.662,130.52,130.47,26.8251]
[1725631500191,6.4791,130.55,130.46,0.8505964]
[1725631500192,15.85366939,130.54,130.46,0.8505964]
[1725631500395,9.55202975,130.53,130.46,0.8505964]
[1725631500721,7.6632,130.5,130.46,0.8505964]
[1725631500889,7.6621,130.52,130.47,9.19718807]
[1725631501092,15.2152,130.54,130.46,2.38302925]
[1725631501317,7.6612,130.53,130.48,26.8224]
[1725631501906,14.1394,130.55,130.49,1.53221881]
[1725631502100,15.9642,130.58,130.5,19.1563]
[1725631502411,15.737181,130.65,130.58,19.1446]
[1725631502606,15.737181,130.65,130.59,1.5309904]
[1725631502821,9.55713114,130.64,130.6,19.1413]
[1725631503001,9.55713114,130.63,130.62,7.6557]
[1725631503200,19.1265,130.71,130.59,1.5309904]
[1725631503201,6.1104,130.71,130.66,7.6533]
[1725631503402,6.1104,130.71,130.64,1.53015555]
[1725631503403,9.56397873,130.7,130.64,1.53015555]
[1725631503728,9.56397873,130.69,130.66,7.6533]
[1725631504032,6.1104,130.71,130.66,7.6533]
[1725631504236,6.1104,130.71,130.65,7.654]
[1725631504237,9.56090607,130.7,130.65,7.654]
[1725631504409,9.56090607,130.7,130.66,19.1334]
[1725631504731,14.3079,130.76,130.7,7.6511]
[1725631505021,9.56358943,130.75,130.68,7.652]
[1725631505233,9.56358943,130.74,130.69,7.6514]
[1725631505399,15.26109069,130.79,130.7,1.52969529]
[1725631505596,6.4256,130.83,130.68,73.08]
[1725631505597,7.6453,130.8,130.73,7.6491]
[1725631505810,6.4256,130.83,130.74,7.6486]
[1725631505811,7.6451,130.81,130.74,7.6486]
[1725631506018,0.63846939,130.82,130.7,7.6506]
[1725631506226,7.6478,130.76,130.68,19.13]
[1725631506521,0.63846939,130.82,130.68,19.13]
[1725631506522,7.6488,130.74,130.68,19.13]
[1725631506904,21.9438,130.75,130.63,20.66733812]
[1725631507199,7.6498,130.73,130.67,7.6527]
[1725631507631,7.6498,130.73,130.66,7.6533]
[1725631508214,22.58226939,130.75,130.64,7.6541]
[1725631508425,9.54898421,130.74,130.63,19.1373]
[1725631508737,9.54898421,130.74,130.55,58.98169607]
[1725631508738,19.1253,130.72,130.59,26.8003]
[1725631508901,7.6553,130.63,130.57,7.6583]
[1725631509099,15.0205,130.67,130.57,9.18979674]
[1725631509319,15.65896939,130.67,130.55,19.1489]
[1725631509535,6.1106,130.65,130.55,19.1489]
[1725631509697,9.53818487,130.64,130.53,7.6605]
[1725631509903,7.6556,130.63,130.56,7.6591]
[1725631510110,7.6556,130.63,130.57,1.5312751]
[1725631510308,7.6546,130.64,130.58,1.53129474]
[1725631510510,6.1106,130.65,130.58,1.53129474]
[1725631510723,15.0205,130.67,130.6,19.1422]
[1725631510920,15.0205,130.67,130.59,7.6574]
[1725631511124,7.6548,130.64,130.58,9.18872264]
[1725631511510,15.0205,130.67,130.59,7.6575]
[1725631511839,22.6738,130.67,130.61,7.6562]
[1725631512126,15.0205,130.67,130.6,9.18726366]
[1725631512325,7.6537,130.66,130.61,7.6563]
[1725631512530,21.20946706,130.69,130.61,1.53071001]
[1725631512825,16.0499,130.71,130.61,1.53071001]
[1725631512826,16.0499,130.71,130.66,7.6533]
[1725631513032,16.0499,130.71,130.61,1.53071001]
[1725631513033,6.3168,130.74,130.67,9.18297407]
[1725631513242,6.3168,130.74,130.67,7.6528]
[1725631513243,7.6499,130.72,130.67,7.6528]
[1725631513727,6.3168,130.74,130.67,19.1309]
[1725631513902,6.3168,130.74,130.68,1.52995144]
[1725631514238,15.70156347,130.78,130.68,1.52995144]
[1725631514239,7.647,130.77,130.71,7.6505]
[1725631514411,0.63846939,130.76,130.61,38.2799]
[1725631514606,7.651,130.71,130.64,7.6546]
[1725631514804,7.6513,130.7,130.65,7.654]
[1725631515007,7.6531,130.67,130.63,19.1377]
[1725631515324,6.52,130.7,130.66,7.6529]
[1725631515530,7.6494,130.73,130.67,7.6526]
[1725631515732,6.6513,130.74,130.68,1.53000001]
[1725631515915,6.6513,130.74,130.68,7.6521]
[1725631516115,6.6513,130.74,130.64,19.1364]
[1725631516325,6.6513,130.74,130.65,1.53002744]
[1725631516631,7.6522,130.69,130.64,26.7909]
[1725631516826,7.6528,130.67,130.62,7.6557]
[1725631517125,7.6529,130.67,130.62,7.6557]
[1725631517507,7.6521,130.69,130.63,9.1858027]
[1725631517708,7.6511,130.7,130.64,1.53034616]
[1725631517907,16.3463,130.72,130.64,1.53034616]
[1725631518126,16.3463,130.72,130.65,20.66384228]
[1725631518322,16.3463,130.72,130.61,50.0]
[1725631518323,7.6522,130.68,130.63,7.655]
[1725631518514,16.3463,130.72,130.64,20.66654324]
[1725631518717,7.6512,130.7,130.64,20.66625996]
[1725631519046,7.6511,130.7,130.65,7.6539]
[1725631519228,6.6513,130.74,130.66,19.1322]
[1725631519407,14.3006,130.74,130.69,7.6515]
[1725631519912,7.6499,130.72,130.68,19.1298]
[1725631520313,6.6513,130.74,130.68,1.52990694]
[1725631520632,14.3001,130.74,130.68,1.52990694]
[1725631520841,15.7776,130.77,130.68,45.0]
[1725631521018,16.41606939,130.77,130.64,1.52961833]
[1725631521334,6.221,130.7,130.61,19.1398]
[1725631521542,6.221,130.7,130.56,1.53030356]
[1725631521710,7.6545,130.65,130.56,38.2941]
[1725631522133,7.6545,130.65,130.6,19.1421]
[1725631522319,7.6535,130.66,130.6,20.67277266]
[1725631522523,6.221,130.7,130.6,20.67277266]
[1725631522825,6.221,130.7,130.6,19.1421]
[1725631523032,6.221,130.7,130.61,1.5306422]
[1725631523205,6.221,130.7,130.65,26.7883]
[1725631523409,6.221,130.7,130.61,1.5306422]
[1725631523410,7.6541,130.65,130.61,19.1398]
[1725631523610,16.4445,130.69,130.61,7.6562]
[1725631523821,0.63846939,130.68,130.6,19.1416]
[1725631524012,16.4445,130.69,130.6,19.1416]
[1725631524329,16.4445,130.69,130.61,1.53071974]
[1725631524930,7.6522,130.68,130.62,19.1384]
[1725631525138,6.221,130.7,130.64,7.6541]
[1725631525309,7.6506,130.71,130.67,7.6527]
[1725631525512,7.6506,130.71,130.64,19.1359]
[1725631525513,6.4913,130.74,130.68,1.53011339]
[1725631525745,0.63846939,130.73,130.64,19.1355]
[1725631525913,0.63846939,130.73,130.6,6.0795]
[1725631525914,19.1256,130.72,130.6,6.0795]
[1725631526113,19.1256,130.72,130.63,19.1375]
[1725631526313,14.1405,130.74,130.69,7.6515]
[1725631526543,7.6506,130.71,130.67,19.1315]
[1725631526843,7.6553,130.63,130.58,15.6118]
[1725631527028,0.63846939,130.7,130.61,7.6561]
[1725631527029,7.6535,130.66,130.61,7.6561]
[1725631527337,0.63846939,130.67,130.6,7.6567]
[1725631527519,7.6541,130.65,130.6,7.6567]
[1725631527844,7.6556,130.63,130.59,26.8002]
[1725631528021,7.6556,130.63,130.55,38.2965]
[1725631528022,6.252,130.66,130.61,19.1396]
[1725631528216,6.252,130.66,130.62,7.6556]
[1725631528753,7.6548,130.64,130.6,7.6569]
[1725631528974,7.6546,130.64,130.6,19.1419]
[1725631529124,6.252,130.66,130.59,19.1432]
[1725631529321,7.6546,130.64,130.59,19.1432]
[1725631529530,6.252,130.66,130.56,19.1473]
[1725631529733,7.6553,130.63,130.59,7.6575]
[1725631529939,7.6545,130.65,130.58,19.1448]
[1725631530136,6.252,130.66,130.62,19.1386]
[1725631530346,7.6524,130.68,130.62,19.1386]
[1725631530549,15.5561,130.69,130.63,7.6547]
[1725631530846,7.6522,130.68,130.63,7.6547]
[1725631531638,0.63846939,130.67,130.56,19.1478]
[1725631531836,7.6559,130.62,130.58,7.658]
[1725631532145,0.63846939,130.67,130.56,19.1478]
[1725631532146,7.6552,130.63,130.59,7.6574]
[1725631532329,7.6552,130.63,130.56,19.1478]
[1725631532330,0.63846939,130.67,130.57,7.6581]
[1725631532540,9.53433389,130.66,130.56,19.1478]
[1725631532720,15.5561,130.69,130.57,1.5311122]
[1725631532923,7.6535,130.66,130.61,7.6558]
[1725631533251,23.2082,130.69,130.64,7.6545]
[1725631533552,15.5561,130.69,130.56,58.98169607]
[1725631533848,15.5561,130.69,130.54,38.3001]
[1725631533849,10.17487908,130.68,130.54,38.3001]
[1725631534029,0.63846939,130.68,130.55,46.5310437]
[1725631534437,19.1326,130.67,130.6,7.6568]
[1725631535153,7.6538,130.66,130.61,7.6563]
[1725631535647,7.654,130.65,130.6,7.6568]
[1725631535869,19.1311,130.68,130.59,19.1431]
[1725631536145,19.1311,130.68,130.55,19.1483]
[1725631536146,15.8128,130.65,130.55,19.1483]
[1725631536351,15.8128,130.65,130.52,19.1531]
[1725631536352,7.6594,130.56,130.52,19.1531]
[1725631536732,0.63846939,130.55,130.52,19.1531]
[1725631536948,13.7709,130.57,130.52,26.8146]
[1725631537155,6.1121,130.57,130.52,19.1531]
[1725631537447,6.1121,130.57,130.47,38.3212]
[1725631537448,7.657,130.6,130.55,7.6594]
[1725631537835,6.1997,130.61,130.56,19.1476]
[1725631538039,6.1997,130.61,130.58,7.658]
[1725631538957,7.6546,130.64,130.59,7.6574]
[1725631539156,7.6563,130.62,130.58,19.1447]
[1725631539330,7.6553,130.63,130.59,7.6574]
[1725631540157,7.6547,130.64,130.59,7.6574]
[1725631541436,7.6552,130.63,130.59,7.6574]
[1725631541754,7.6552,130.63,130.58,19.1447]
[1725631541755,7.6553,130.63,130.58,26.8027]
[1725631541958,7.6553,130.63,130.59,7.6574]
[1725631542260,6.1879,130.65,130.6,19.142]
[1725631542554,6.1879,130.65,130.62,19.1391]
[1725631542755,6.3675,130.69,130.56,39.82556352]
[1725631542961,6.3675,130.69,130.64,19.1361]
[1725631543639,14.0196,130.69,130.64,26.7905]
[1725631543839,14.0196,130.69,130.65,7.6539]
[1725631544434,6.3675,130.69,130.61,19.1398]
[1725631544661,9.52862809,130.68,130.61,19.1398]
[1725631544829,7.6538,130.66,130.61,19.1398]
[1725631545154,6.3675,130.69,130.53,15.0344]
[1725631545461,6.3675,130.69,130.57,19.1461]
[1725631545462,7.6565,130.61,130.57,19.1461]
[1725631545643,7.6565,130.61,130.56,7.6591]
[1725631545644,0.63846939,130.63,130.54,26.8101]
[1725631545835,0.63846939,130.62,130.55,7.6597]
[1725631546035,7.6571,130.6,130.55,7.6597]
[1725631546246,7.6571,130.6,130.56,7.6592]
[1725631546448,7.6564,130.61,130.56,7.6592]
[1725631547741,7.6557,130.63,130.56,19.1472]
[1725631548254,7.6558,130.62,130.58,7.658]
[1725631548657,7.6553,130.63,130.58,7.658]
[1725631548857,21.397,130.64,130.6,7.6569]
[1725631549739,7.6552,130.63,130.59,7.6574]
[1725631550056,22.03546939,130.64,130.57,7.6581]
[1725631550263,7.6568,130.61,130.56,7.6591]
[1725631550437,22.03546939,130.64,130.57,7.6585]
[1725631550438,7.6558,130.62,130.57,7.6585]
[1725631550637,7.6553,130.63,130.58,7.6576]
[1725631550963,21.397,130.64,130.6,7.6564]
[1725631551259,29.0517,130.64,130.59,26.8006]
[1725631551471,17.17714293,130.63,130.59,26.8006]
[1725631551651,7.6552,130.63,130.59,26.8006]
[1725631551837,21.397,130.64,130.52,38.307]
[1725631551838,22.03546939,130.64,130.55,19.1484]
[1725631552165,7.6576,130.59,130.55,26.8082]
[1725631552375,7.657,130.6,130.55,26.8082]
[1725631552657,21.397,130.64,130.56,7.6593]
[1725631552865,21.397,130.64,130.57,7.6584]
[1725631553065,7.6562,130.62,130.57,7.6584]
[1725631553373,9.52012573,130.61,130.57,7.6584]
[1725631554070,9.52012573,130.61,130.56,7.6591]
[1725631554255,9.52012573,130.61,130.55,26.8082]
[1725631554256,7.6576,130.59,130.55,26.8082]
[1725631554768,7.6591,130.57,130.52,26.8145]
[1725631554955,19.1415,130.61,130.52,19.1531]
[1725631554956,23.8191564,130.56,130.52,19.1531]
[1725631555158,7.6627,130.51,130.46,8.5156964]
[1725631555357,7.664,130.49,130.46,0.8505964]
[1725631555578,7.6629,130.5,130.46,0.8505964]
[1725631555747,0.63846939,130.49,130.46,0.8505964]
[1725631556065,16.5301,130.53,130.46,0.8505964]
[1725631556270,9.51301076,130.48,130.46,0.8505964]
[1725631556567,0.63846939,130.47,130.4,19.1717]
[1725631556769,0.63846939,130.47,130.33,0.8505964]
[1725631556770,6.1426,130.46,130.33,0.8505964]
[1725631556947,0.63846939,130.45,130.33,8.5232964]
[1725631557146,65.63846939,130.45,130.33,27.7041964]
[1725631557440,65.63846939,130.45,130.33,20.0314964]
[1725631557640,65.63846939,130.45,130.33,27.7041964]
[1725631557864,75.63846939,130.45,130.33,0.8505964]
[1725631558166,65.63846939,130.45,130.33,0.8505964]
[1725631558350,75.63846939,130.45,130.33,0.8505964]
[1725631558548,65.63846939,130.45,130.33,0.8505964]
[1725631558747,75.63846939,130.45,130.33,0.8505964]
[1725631559250,7.6712,130.36,130.33,0.8505964]
[1725631559866,7.6704,130.37,130.33,0.8505964]
[1725631560068,7.6699,130.38,130.33,0.8505964]
[1725631560276,7.6683,130.41,130.35,7.6716]
[1725631560468,7.6687,130.4,130.33,0.8505964]
[1725631560895,0.63846939,130.39,130.33,0.8505964]
[1725631561055,7.6711,130.36,130.33,0.8505964]
[1725631561255,0.63846939,130.35,130.33,0.8505964]
[1725631561570,7.6758,130.28,130.24,19.194]
[1725631561769,0.63846939,130.27,130.21,26.879]
[1725631561966,8.31506939,130.27,130.21,26.879]
[1725631562174,15.6797645,130.31,130.21,19.1996]
[1725631562494,15.6797645,130.31,130.2,0.8505964]
[1725631562495,19.1869,130.3,130.2,0.8505964]
[1725631562781,22.2559,130.23,130.02,1.53620724]
[1725631562981,0.63846939,130.22,130.1,7.6859]
[1725631563187,45.63846939,130.22,130.12,7.685]
[1725631563479,45.63846939,130.22,130.09,19.2171]
[1725631563480,0.63846939,130.22,130.16,7.6823]
[1725631563670,0.63846939,130.22,130.12,7.6851]
[1725631563671,45.63846939,130.22,130.12,7.6851]
[1725631563877,45.63846939,130.22,130.08,38.437]
[1725631564174,20.0,130.21,130.13,19.211]
[1725631564378,0.63846939,130.2,130.13,19.211]
[1725631564583,0.63846939,130.2,130.14,7.6839]
[1725631564885,7.6828,130.17,130.1,7.6861]
[1725631565182,20.63846939,130.16,130.09,19.2165]
[1725631565386,20.63846939,130.16,130.07,8.5385964]
[1725631565577,45.0,130.15,130.07,0.8505964]
[1725631565894,7.6881,130.08,130.0,41.9221]
[1725631566064,15.64043263,130.12,130.0,15.0]
[1725631566259,15.00196324,130.12,130.01,60.51952292]
[1725631566463,15.00196324,130.12,130.11,19.2145]
[1725631566761,6.6654,130.14,130.0,15.0]
[1725631566762,0.63846939,130.13,130.0,15.0]
[1725631567261,15.24014248,130.12,130.0,15.0]
[1725631567462,0.63846939,130.11,130.0,15.0]
[1725631567676,7.6876,130.08,130.01,7.6913]
[1725631567882,7.687,130.09,130.0,34.6408514]
[1725631568083,7.6913,130.02,130.0,15.4115514]
[1725631568261,6.6654,130.01,129.97,7.694]
[1725631568460,81.3319,130.08,129.89,118.98169607]
[1725631568461,6.6654,130.07,129.89,118.98169607]
[1725631568688,6.6654,130.07,130.04,7.6897]
[1725631568862,6.6654,130.07,130.02,19.2264]
[1725631569066,6.6654,130.07,130.05,7.6892]
[1725631569273,16.6816563,130.11,130.05,19.2226]
[1725631569495,0.63846939,130.13,130.08,19.2181]
[1725631569663,8.32326939,130.13,130.06,7.6883]
[1725631569983,8.32326939,130.13,129.97,38.4696]
[1725631569984,6.6654,130.14,130.02,38.455]
[1725631570158,0.63846939,130.17,130.1,19.2151]
[1725631570490,16.12688973,130.18,130.1,19.2151]
[1725631570669,0.63846939,130.17,130.12,7.6851]
[1725631570880,0.63846939,130.17,130.1,26.901]
[1725631571265,0.63846939,130.17,130.06,19.2209]
[1725631571471,7.6876,130.08,129.93,58.98169607]
[1725631571677,0.63846939,130.07,129.92,6.0484]
[1725631571969,15.67502264,130.12,129.98,19.2328]
[1725631572173,15.67502264,130.12,130.04,7.6899]
[1725631572174,7.6866,130.1,130.04,7.6899]
[1725631572587,0.63846939,130.1,130.03,7.6899]
[1725631572785,8.32536939,130.1,130.03,7.6903]
[1725631572984,20.0,130.09,130.02,7.6906]
[1725631573183,6.0672,130.07,129.9,58.98169607]
[1725631573384,20.63846939,130.06,129.95,19.237]
[1725631573683,20.0,130.06,130.0,7.6922]
[1725631573882,20.0,130.06,129.98,19.2335]
[1725631573883,7.6893,130.05,129.99,7.6928]
[1725631574059,7.6916,130.02,129.96,7.6946]
[1725631574263,7.6917,130.01,129.95,7.6948]
[1725631574561,7.6906,130.03,129.94,19.2388]
[1725631574774,7.6912,130.02,129.94,19.2388]
[1725631575061,7.6917,130.01,129.94,19.2388]
[1725631575266,7.6912,130.02,129.94,19.2388]
[1725631575468,14.74702418,130.05,129.94,19.2388]
[1725631575662,14.74702418,130.05,129.91,19.2439]
[1725631575663,84.2259,130.04,129.91,19.2439]
[1725631575886,84.2259,130.04,129.85,73.98169607]
[1725631575887,7.6925,130.0,129.95,7.6947]
[1725631576069,14.74702418,130.05,129.91,38.4868]
[1725631576270,22.43632418,130.05,129.99,7.6928]
[1725631576470,7.6899,130.04,129.98,19.2323]
[1725631576677,0.63846939,130.04,129.91,76.9746]
[1725631576978,14.74702418,130.05,129.91,76.9746]
[1725631576979,14.74702418,130.05,129.92,50.0]
[1725631577167,22.43642418,130.05,130.0,7.6922]
[1725631577375,22.43642418,130.05,129.94,7.6956]
[1725631577376,0.63846939,130.04,129.94,7.6956]
[1725631577580,0.63846939,130.04,129.91,38.4868]
[1725631577581,20.63846939,130.04,129.91,38.4868]
[1725631577787,7.6917,130.01,129.96,7.6946]
[1725631577995,14.74702418,130.05,129.99,7.6927]
[1725631577996,22.43682418,130.05,129.99,7.6927]
[1725631578201,14.74702418,130.05,129.98,26.9268]
[1725631578491,14.74702418,130.05,130.03,7.6904]
[1725631578787,7.689,130.06,130.01,19.2291]
[1725631579033,6.70566939,130.07,129.98,19.2337]
[1725631579200,7.6912,130.02,129.98,19.2337]
[1725631579500,6.0672,130.07,129.9,7.6977]
[1725631579501,7.6952,129.95,129.9,7.6977]
[1725631579669,0.63846939,130.01,129.85,15.0]
[1725631579869,19.2334,129.99,129.88,19.248]
[1725631580090,20.0,129.98,129.85,15.0]
[1725631580302,7.7006,129.86,129.85,15.0]
[1725631580491,6.5333,129.89,129.85,8.3334]
[1725631580670,6.5333,129.89,129.82,7.7028]
[1725631580876,7.7001,129.87,129.82,7.7028]
[1725631581073,0.63846939,129.87,129.78,19.2632]
[1725631581390,0.63846939,129.87,129.71,88.5471]
[1725631581391,0.63846939,129.86,129.71,38.5471]
[1725631581568,0.63846939,129.86,129.76,19.2649]
[1725631581569,0.63846939,129.85,129.76,19.2649]
[1725631581769,0.63846939,129.85,129.78,7.7051]
[1725631581770,7.7023,129.84,129.78,7.7051]
[1725631581969,0.63846939,129.85,129.79,7.7046]
[1725631581970,8.33976939,129.85,129.79,7.7046]
[1725631582166,15.7995,129.88,129.79,19.2613]
[1725631582373,7.7011,129.86,129.79,26.9656]
[1725631582598,20.63846939,129.85,129.78,7.7052]
[1725631582798,45.0,129.84,129.71,19.2724]
[1725631582994,7.7047,129.79,129.72,7.7086]
[1725631583197,39.2535,129.85,129.69,1.0266503]
[1725631583198,20.0,129.85,129.69,1.0266503]
[1725631583412,0.63846939,129.84,129.69,1.0266503]
[1725631583592,7.709,129.72,129.69,1.0266503]
[1725631583781,19.2659,129.77,129.69,1.0266503]
[1725631583995,65.63846939,129.76,129.69,1.0266503]
[1725631584204,7.7089,129.72,129.69,1.0266503]
[1725631584704,0.63846939,129.74,129.69,1.0266503]
[1725631584920,65.63846939,129.74,129.69,1.0266503]
[1725631585082,73.34626939,129.74,129.69,1.0266503]
[1725631585279,0.63846939,129.74,129.69,8.7371503]
[1725631585481,22.3091,129.75,129.69,20.3027503]
[1725631585711,0.63846939,129.77,129.73,7.708]
[1725631585907,3.89634678,129.8,129.69,1.0266503]
[1725631586107,0.63846939,129.77,129.69,1.0266503]
[1725631586421,15.7308115,129.78,129.74,7.7077]
[1725631586714,15.09234211,129.78,129.75,7.707]
[1725631586887,20.10954678,129.83,129.71,1.54149721]
[1725631587087,0.63846939,129.85,129.79,19.2617]
[1725631587388,0.63846939,129.85,129.69,41.11849703]
[1725631587389,0.63846939,129.85,129.7,22.85669918]
[1725631587705,6.2575,129.89,129.85,7.7011]
[1725631587907,6.2575,129.89,129.73,38.5391]
[1725631587908,13.9564,129.89,129.82,26.9594]
[1725631588085,6.2575,129.89,129.82,19.257]
[1725631588285,6.2575,129.89,129.84,7.7017]
[1725631588497,6.2575,129.89,129.82,19.257]
[1725631588816,6.2575,129.89,129.79,7.7043]
[1725631589042,7.7024,129.83,129.77,7.7054]
[1725631589181,22.61515185,129.88,129.81,7.7029]
[1725631589388,22.61515185,129.88,129.82,7.7029]
[1725631589586,22.61515185,129.88,129.8,19.2592]
[1725631589587,0.63846939,129.87,129.8,19.2592]
[1725631589801,14.91575185,129.88,129.8,19.2592]
[1725631590111,15.55422124,129.88,129.8,19.2592]
[1725631590508,14.91575185,129.88,129.83,19.2556]
[1725631590690,15.5353,129.91,129.85,7.7011]
[1725631591023,15.5353,129.91,129.8,7.7041]
[1725631591024,0.63846939,129.9,129.8,7.7041]
[1725631591308,7.7006,129.86,129.79,26.9654]
[1725631591520,0.63846939,129.85,129.8,7.7037]
[1725631591714,50.0,129.88,129.7,15.0]
[1725631591902,50.0,129.88,129.71,19.2726]
[1725631591903,6.322,129.86,129.71,19.2726]
[1725631592084,65.63846939,129.85,129.71,19.2726]
[1725631592289,19.2558,129.84,129.71,19.2726]
[1725631592486,7.7064,129.77,129.71,19.2726]
[1725631592692,19.2591,129.81,129.7,15.0]
[1725631592916,65.63846939,129.8,129.7,15.0]
[1725631593120,7.7082,129.74,129.7,15.0]
[1725631593418,0.63846939,129.73,129.7,15.0]
[1725631593602,39.90466939,129.77,129.7,15.0]
[1725631593817,7.7089,129.72,129.7,15.0]
[1725631594001,7.7083,129.73,129.7,15.0]
[1725631594201,7.7095,129.71,129.7,15.0]
[1725631594400,19.2692,129.75,129.7,15.0]
[1725631594401,7.7088,129.73,129.7,15.0]
[1725631594600,20.63846939,129.77,129.7,15.0]
[1725631594803,20.63846939,129.77,129.69,1.0266503]
[1725631594804,7.7101,129.7,129.69,1.0266503]
[1725631595013,7.714,129.64,129.6,0.1]
[1725631595213,0.63846939,129.68,129.6,0.1]
[1725631595415,0.63846939,129.67,129.6,0.1]
[1725631595628,19.2812,129.66,129.6,0.1]
[1725631595798,19.2812,129.66,129.55,15.0]
[1725631595799,7.7143,129.63,129.55,14.1]
[1725631595997,20.0,129.68,129.57,19.2941]
[1725631596225,0.63846939,129.67,129.55,14.1]
[1725631596398,0.63846939,129.68,129.55,14.1]
[1725631596598,20.0,129.7,129.57,19.2935]
[1725631596599,0.63846939,129.69,129.57,19.2935]
[1725631596802,20.0,129.7,129.55,21.8185]
[1725631596803,0.63846939,129.67,129.55,21.8185]
[1725631597127,0.63846939,129.69,129.56,19.2952]
[1725631597297,20.63846939,129.7,129.59,19.2904]
[1725631597494,7.7107,129.69,129.62,7.7147]
[1725631597697,0.63846939,129.68,129.55,14.1]
[1725631597904,7.7131,129.65,129.58,7.717]
[1725631598101,7.7105,129.7,129.61,7.7152]
[1725631598321,0.63846939,129.69,129.61,7.7152]
[1725631598527,0.63846939,129.69,129.62,7.7146]
[1725631598826,15.1262169,129.73,129.61,19.2878]
[1725631599126,7.7091,129.72,129.61,19.2878]
[1725631599423,7.7109,129.69,129.61,27.0029]
[1725631599609,0.63846939,129.68,129.61,19.2878]
[1725631599818,0.63846939,129.69,129.59,7.7165]
[1725631600116,7.7105,129.7,129.62,7.7147]
[1725631600317,15.1262169,129.73,129.55,24.1]
[1725631600318,15.1262169,129.73,129.59,60.0]
[1725631600507,6.4618,129.74,129.63,19.2847]
[1725631600707,6.4618,129.74,129.64,45.0]
[1725631600921,7.7087,129.73,129.64,7.7136]
[1725631601126,7.7087,129.73,129.63,19.2847]
[1725631601326,7.7087,129.73,129.58,19.2927]
[1725631601327,7.7115,129.68,129.58,19.2927]
[1725631601509,6.4618,129.74,129.59,45.0]
[1725631601714,20.63846939,129.73,129.59,45.0]
[1725631602206,20.63846939,129.73,129.55,80.5281]
[1725631602207,20.63846939,129.73,129.55,14.1]
[1725631602516,7.7131,129.65,129.58,7.7172]
[1725631602710,19.2794,129.68,129.55,14.1]
[1725631602916,7.715,129.62,129.55,14.1]
[1725631603105,45.63846939,129.67,129.55,14.1]
[1725631603300,7.7168,129.59,129.55,14.1]